[Event "Irish Championship 2026"]
[Site "Talbot Hotel Stillorgan, Co.Dublin, IE"]
[Date "2026.08.01"]
[Round "1"]
[White "Fox, Anthony"]
[Black "Murray, Benjamin"]
[Result "1-0"]
[Board "78"]
[TimeControl "40/5400+30:1800+30"]
[WhiteFideId "2500736"]
[BlackFideId "2512963"]
[WhiteElo "1876"]
[BlackElo "2080"]
[WhiteClock "0:13:05"]
[BlackClock "0:07:31"]
[Variant "Standard"]
[EndDate "2026.08.01"]
[EndTime "19:13:37"]

1. e4 {[%clk 1:30:57]}  e6 {[%clk 1:30:51]} 2. d4 {[%clk 1:31:03]}  d5 {[%clk 1:31:14]} 3. exd5 {[%clk 1:31:25]}  exd5 {[%clk 1:31:36]}
4. Nf3 {[%clk 1:31:41]}  Nf6 {[%clk 1:31:48]} 5. Bd3 {[%clk 1:30:36]}  c5 {[%clk 1:32:08]} 6. O-O {[%clk 1:30:39]}  c4 {[%clk 1:32:33]}
7. Re1+ {[%clk 1:30:58]}  Be7 {[%clk 1:32:57]} 8. Bf1 {[%clk 1:31:16]}  O-O {[%clk 1:33:20]} 9. b3 {[%clk 1:30:55]}  cxb3 {[%clk 1:33:44]}
10. axb3 {[%clk 1:31:15]}  Nc6 {[%clk 1:34:06]} 11. Bd3 {[%clk 1:29:32]}  Bg4 {[%clk 1:32:42]} 12. c3 {[%clk 1:28:09]}  Re8 {[%clk 1:30:30]}
13. h3 {[%clk 1:25:16]}  Bh5 {[%clk 1:30:24]} 14. Bf4 {[%clk 1:24:35]}  Bd6 {[%clk 1:23:05]} 15. Rxe8+ {[%clk 1:23:23]}  Nxe8 {[%clk 1:23:27]}
16. Bxd6 {[%clk 1:22:07]}  Nxd6 {[%clk 1:22:35]} 17. Nbd2 {[%clk 1:21:57]}  Qf6 {[%clk 1:11:10]} 18. Qc2 {[%clk 1:19:15]}  h6 {[%clk 1:07:57]}
19. Re1 {[%clk 1:18:23]}  Rc8 {[%clk 1:03:21]} 20. Qb1 {[%clk 1:10:37]}  Ne7 {[%clk 0:44:14]} 21. c4 {[%clk 0:55:04]}  Bg6 {[%clk 0:28:02]}
22. Ne5 {[%clk 0:47:51]}  Ndf5 {[%clk 0:22:54]} 23. Ndf3 {[%clk 0:43:32]}  Rd8 {[%clk 0:18:16]} 24. c5 {[%clk 0:38:48]}  Nh4 {[%clk 0:09:29]}
25. Nxh4 {[%clk 0:34:14]}  Bxd3 {[%clk 0:09:34]} 26. Qxd3 {[%clk 0:34:16]}  Qxh4 {[%clk 0:09:58]} 27. b4 {[%clk 0:30:43]}  Qf6 {[%clk 0:07:04]}
28. b5 {[%clk 0:29:25]}  Ng6 {[%clk 0:03:13]} 29. Nxg6 {[%clk 0:25:21]}  fxg6 {[%clk 0:03:34]} 30. Re5 {[%clk 0:23:16]}  Qf7 {[%clk 0:01:40]}
31. Qe3 {[%clk 0:23:07]}  Rd7 {[%clk 0:01:47]} 32. Re8+ {[%clk 0:20:12]}  Kh7 {[%clk 0:02:12]} 33. Qe6 {[%clk 0:17:08]}  Qxe6 {[%clk 0:02:17]}
34. Rxe6 {[%clk 0:17:33]}  Kg8 {[%clk 0:02:11]} 35. Rxg6 {[%clk 0:13:22]}  Kf7 {[%clk 0:02:08]} 36. Rg3 {[%clk 0:13:43]}  a6 {[%clk 0:02:21]}
37. Ra3 {[%clk 0:10:44]}  axb5 {[%clk 0:02:05]} 38. Rb3 {[%clk 0:11:05]}  Kf6 {[%clk 0:01:04]} 39. Rxb5 {[%clk 0:11:20]}  Kf5 {[%clk 0:01:14]}
40. f3 {[%clk 0:11:28]}  h5 {[%clk 0:00:37]} 41. h4 {[%clk 0:10:10]}  g5 {[%clk 0:26:16]} 42. hxg5 {[%clk 0:39:23]}  Kxg5 {[%clk 0:24:23]}
43. g3 {[%clk 0:38:56]}  h4 {[%clk 0:24:02]} 44. gxh4+ {[%clk 0:36:19]}  Kxh4 {[%clk 0:24:26]} 45. Kf2 {[%clk 0:36:38]}  Kg5 {[%clk 0:24:43]}
46. Rb1 {[%clk 0:36:23]}  Rh7 {[%clk 0:22:50]} 47. Rg1+ {[%clk 0:34:33]}  Kf5 {[%clk 0:20:33]} 48. Rg8 {[%clk 0:33:13]}  Rh2+ {[%clk 0:17:34]}
49. Ke3 {[%clk 0:32:41]}  Rb2 {[%clk 0:17:30]} 50. Rf8+ {[%clk 0:29:19]}  Ke6 {[%clk 0:17:24]} 51. Re8+ {[%clk 0:28:53]}  Kd7 {[%clk 0:16:15]}
52. Re5 {[%clk 0:27:44]}  Rb3+ {[%clk 0:16:36]} 53. Ke2 {[%clk 0:23:51]}  Rb2+ {[%clk 0:14:38]} 54. Kd3 {[%clk 0:21:36]}  Rb3+ {[%clk 0:14:50]}
55. Ke2 {[%clk 0:19:19]}  Rb2+ {[%clk 0:14:51]} 56. Ke3 {[%clk 0:19:20]}  Rb3+ {[%clk 0:13:54]} 57. Kf4 {[%clk 0:19:39]}  Kc6 {[%clk 0:13:55]}
58. Re3 {[%clk 0:19:54]}  Rb4 {[%clk 0:13:44]} 59. Ke5 {[%clk 0:20:04]}  b6 {[%clk 0:13:05]} 60. cxb6 {[%clk 0:19:51]}  Rxb6 {[%clk 0:13:09]}
61. Rc3+ {[%clk 0:19:59]}  Kd7 {[%clk 0:13:29]} 62. Kxd5 {[%clk 0:20:20]}  Rd6+ {[%clk 0:13:39]} 63. Ke4 {[%clk 0:20:09]}  Re6+ {[%clk 0:13:33]}
64. Kf5 {[%clk 0:19:21]}  Rd6 {[%clk 0:13:57]} 65. Rc4 {[%clk 0:19:39]}  Ke7 {[%clk 0:13:12]} 66. f4 {[%clk 0:19:11]}  Rf6+ {[%clk 0:12:24]}
67. Kg5 {[%clk 0:19:30]}  Rd6 {[%clk 0:12:25]} 68. Ra4 {[%clk 0:19:06]}  Kf7 {[%clk 0:12:14]} 69. Ra7+ {[%clk 0:19:01]}  Kf8 {[%clk 0:12:26]}
70. Ra4 {[%clk 0:18:57]}  Kf7 {[%clk 0:12:30]} 71. f5 {[%clk 0:17:53]}  Rd7 {[%clk 0:11:57]} 72. Kf4 {[%clk 0:17:51]}  Ke7 {[%clk 0:10:08]}
73. Ke5 {[%clk 0:18:09]}  Rb7 {[%clk 0:09:33]} 74. d5 {[%clk 0:18:17]}  Rb1 {[%clk 0:09:19]} 75. Ra7+ {[%clk 0:18:28]}  Kd8 {[%clk 0:09:11]}
76. f6 {[%clk 0:18:40]}  Ke8 {[%clk 0:09:15]} 77. Ke6 {[%clk 0:18:16]}  Re1+ {[%clk 0:08:26]} 78. Kd6 {[%clk 0:18:22]}  Rd1 {[%clk 0:08:28]}
79. Re7+ {[%clk 0:16:35]}  Kd8 {[%clk 0:08:18]} 80. Re5 {[%clk 0:15:48]}  Rf1 {[%clk 0:08:12]} 81. Ke6 {[%clk 0:15:49]}  Ke8 {[%clk 0:08:08]}
82. d6 {[%clk 0:15:06]}  Rf2 {[%clk 0:07:23]} 83. d7+ {[%clk 0:15:07]}  Kd8 {[%clk 0:07:32]} 84. f7 {[%clk 0:12:54]}  Rf1 {[%clk 0:07:31]}
85. Rf5 {[%clk 0:13:05]} 1-0

[Event "Irish Championship 2026"]
[Site "Talbot Hotel Stillorgan, Co.Dublin, IE"]
[Date "2026.08.01"]
[Round "1"]
[White "Hayes, Peter J."]
[Black "Moull, Arthur"]
[Result "1-0"]
[Board "79"]
[TimeControl "40/5400+30:1800+30"]
[WhiteFideId "2502569"]
[BlackFideId "2517426"]
[WhiteElo "2073"]
[BlackElo "1876"]
[WhiteClock "1:30:30"]
[BlackClock "0:06:59"]
[Variant "Standard"]
[EndDate "2026.08.01"]
[EndTime "18:55:01"]

1. d4 {[%clk 1:30:30]}  d5 {[%clk 1:30:30]} 2. c4 {[%clk 1:29:47]}  dxc4 {[%clk 1:30:17]} 3. e4 {[%clk 1:28:53]}  b5 {[%clk 1:30:11]}
4. a4 {[%clk 1:28:03]}  c6 {[%clk 1:30:05]} 5. axb5 {[%clk 1:27:42]}  cxb5 {[%clk 1:30:04]} 6. Nc3 {[%clk 1:27:27]}  Qb6 {[%clk 1:29:57]}
7. Qh5 {[%clk 1:27:22]}  Bd7 {[%clk 1:18:01]} 8. Nf3 {[%clk 1:26:59]}  Nf6 {[%clk 1:13:31]} 9. Qh4 {[%clk 1:26:53]}  e6 {[%clk 1:08:20]}
10. Bg5 {[%clk 1:23:03]}  Be7 {[%clk 1:08:04]} 11. e5 {[%clk 1:22:02]}  Ng8 {[%clk 1:07:57]} 12. Be2 {[%clk 0:53:00]}  Nc6 {[%clk 0:59:04]}
13. O-O {[%clk 0:46:24]}  Nh6 {[%clk 0:54:43]} 14. d5 {[%clk 0:29:59]}  Nf5 {[%clk 0:49:53]} 15. Qe4 {[%clk 0:25:58]}  Bxg5 {[%clk 0:37:26]}
16. Nxg5 {[%clk 0:25:31]}  exd5 {[%clk 0:34:06]} 17. Nxd5 {[%clk 0:24:56]}  Qd8 {[%clk 0:30:20]} 18. e6 {[%clk 0:18:36]}  fxe6 {[%clk 0:26:08]}
19. Nxe6 {[%clk 0:15:00]}  Bxe6 {[%clk 0:25:06]} 20. Qxe6+ {[%clk 0:14:02]}  Nce7 {[%clk 0:15:12]} 21. Nf6+ {[%clk 0:05:05]}  Kf8 {[%clk 0:15:03]}
22. Rad1 {[%clk 0:03:15]}  Qc8 {[%clk 0:13:43]} 23. Nd7+ {[%clk 0:02:41]}  Ke8 {[%clk 0:13:38]} 24. Bf3 {[%clk 0:02:41]}  h5 {[%clk 0:06:59]}
25. Rfe1 {[%clk 0:00:00]} 1-0

[Event "Irish Championship 2026"]
[Site "Talbot Hotel Stillorgan, Co.Dublin, IE"]
[Date "2026.08.01"]
[Round "1"]
[White "Voogt, Declan"]
[Black "Freeman, Gordon"]
[Result "1-0"]
[Board "80"]
[TimeControl "40/5400+30:1800+30"]
[WhiteFideId "2517388"]
[BlackFideId "2501309"]
[WhiteElo "1849"]
[BlackElo "2068"]
[BlackTitle "FM"]
[WhiteClock "0:38:00"]
[BlackClock "0:26:43"]
[Variant "Standard"]
[EndDate "2026.08.01"]
[EndTime "18:55:04"]

1. d4 {[%clk 1:30:55]}  d5 {[%clk 1:30:50]} 2. c4 {[%clk 1:31:16]}  c6 {[%clk 1:31:15]} 3. Nf3 {[%clk 1:31:19]}  Nf6 {[%clk 1:31:40]}
4. g3 {[%clk 1:31:44]}  Bf5 {[%clk 1:31:20]} 5. Bg2 {[%clk 1:31:45]}  e6 {[%clk 1:31:19]} 6. Nc3 {[%clk 1:31:59]}  h6 {[%clk 1:30:40]}
7. Qb3 {[%clk 1:32:11]}  Qb6 {[%clk 1:29:35]} 8. c5 {[%clk 1:32:29]}  Qxb3 {[%clk 1:28:40]} 9. axb3 {[%clk 1:32:46]}  Be7 {[%clk 1:22:50]}
10. b4 {[%clk 1:32:06]}  O-O {[%clk 1:20:15]} 11. b5 {[%clk 1:28:43]}  cxb5 {[%clk 1:00:42]} 12. Nxb5 {[%clk 1:27:30]}  Nc6 {[%clk 1:01:08]}
13. Bf4 {[%clk 1:20:03]}  Be4 {[%clk 0:55:02]} 14. Ra4 {[%clk 1:00:59]}  a6 {[%clk 0:37:53]} 15. Nc3 {[%clk 1:00:22]}  Bxf3 {[%clk 0:30:17]}
16. Bxf3 {[%clk 0:58:24]}  Nd7 {[%clk 0:27:33]} 17. e3 {[%clk 0:46:21]}  g5 {[%clk 0:21:48]} 18. Bc7 {[%clk 0:45:10]}  Rfc8 {[%clk 0:21:07]}
19. Ba5 {[%clk 0:43:57]}  Nxa5 {[%clk 0:20:24]} 20. Rxa5 {[%clk 0:43:56]}  b6 {[%clk 0:19:51]} 21. cxb6 {[%clk 0:41:38]}  Nxb6 {[%clk 0:20:16]}
22. Be2 {[%clk 0:38:14]}  Bb4 {[%clk 0:18:50]} 23. Ra2 {[%clk 0:34:25]}  a5 {[%clk 0:15:21]} 24. Kd2 {[%clk 0:33:29]}  a4 {[%clk 0:09:46]}
25. Rc1 {[%clk 0:33:47]}  Ba5 {[%clk 0:08:42]} 26. Kd1 {[%clk 0:30:30]}  Bxc3 {[%clk 0:06:18]} 27. bxc3 {[%clk 0:26:52]}  Nc4 {[%clk 0:05:39]}
28. Kc2 {[%clk 0:24:11]}  Nd6 {[%clk 0:05:12]} 29. Bd3 {[%clk 0:19:23]}  Rc7 {[%clk 0:05:04]} 30. Rb1 {[%clk 0:17:18]}  Rac8 {[%clk 0:03:07]}
31. Ra3 {[%clk 0:16:28]}  f5 {[%clk 0:01:26]} 32. Rb6 {[%clk 0:15:18]}  Ne4 {[%clk 0:01:41]} 33. Bxe4 {[%clk 0:10:19]}  fxe4 {[%clk 0:02:08]}
34. Kd2 {[%clk 0:10:33]}  Rf8 {[%clk 0:00:51]} 35. Ke1 {[%clk 0:09:01]}  Kf7 {[%clk 0:00:47]} 36. Rxa4 {[%clk 0:08:53]}  Rxc3 {[%clk 0:00:51]}
37. Ra7+ {[%clk 0:09:04]}  Kf6 {[%clk 0:00:39]} 38. Rh7 {[%clk 0:08:24]}  Rfc8 {[%clk 0:00:39]} 39. Kf1 {[%clk 0:08:05]}  Kg6 {[%clk 0:00:46]}
40. Re7 {[%clk 0:08:20]}  R8c6 {[%clk 0:00:54]} 41. Rxe6+ {[%clk 0:08:30]}  Rxe6 {[%clk 0:30:14]} 42. Rxe6+ {[%clk 0:38:52]}  Kh5 {[%clk 0:26:37]}
43. h3 {[%clk 0:37:48]}  g4 {[%clk 0:26:43]} 44. Re5+ {[%clk 0:38:00]} 1-0

[Event "Irish Championship 2026"]
[Site "Talbot Hotel Stillorgan, Co.Dublin, IE"]
[Date "2026.08.01"]
[Round "1"]
[White "Paibir, Atharva"]
[Black "Rai, Oleksii"]
[Result "1-0"]
[Board "81"]
[TimeControl "40/5400+30:1800+30"]
[WhiteFideId "2512882"]
[BlackFideId "2531526"]
[WhiteElo "2067"]
[BlackElo "1840"]
[WhiteClock "0:08:27"]
[BlackClock "0:06:08"]
[Variant "Standard"]
[EndDate "2026.08.01"]
[EndTime "18:55:01"]

1. e4 {[%clk 1:30:54]}  c5 {[%clk 1:30:56]} 2. Nf3 {[%clk 1:31:18]}  d6 {[%clk 1:31:19]} 3. d4 {[%clk 1:31:38]}  cxd4 {[%clk 1:31:41]}
4. Nxd4 {[%clk 1:32:04]}  Nf6 {[%clk 1:31:59]} 5. Nc3 {[%clk 1:32:31]}  Nc6 {[%clk 1:32:19]} 6. Bg5 {[%clk 1:32:21]}  e6 {[%clk 1:32:36]}
7. Qd2 {[%clk 1:32:42]}  Be7 {[%clk 1:32:54]} 8. O-O-O {[%clk 1:33:03]}  O-O {[%clk 1:31:46]} 9. f4 {[%clk 1:32:49]}  a6 {[%clk 1:29:48]}
10. Nxc6 {[%clk 1:30:44]}  bxc6 {[%clk 1:30:10]} 11. e5 {[%clk 1:31:06]}  dxe5 {[%clk 1:26:12]} 12. fxe5 {[%clk 1:31:29]}  Nd5 {[%clk 1:21:58]}
13. Bxe7 {[%clk 1:31:19]}  Qxe7 {[%clk 1:22:21]} 14. Ne4 {[%clk 1:28:10]}  a5 {[%clk 1:09:55]} 15. Qd4 {[%clk 1:12:06]}  Qa7 {[%clk 0:53:59]}
16. Nc5 {[%clk 0:55:31]}  f6 {[%clk 0:42:42]} 17. exf6 {[%clk 0:49:22]}  Rxf6 {[%clk 0:39:19]} 18. Ne4 {[%clk 0:43:30]}  Qxd4 {[%clk 0:39:41]}
19. Rxd4 {[%clk 0:43:55]}  Rf4 {[%clk 0:38:51]} 20. g3 {[%clk 0:42:38]}  Rf8 {[%clk 0:37:00]} 21. Bc4 {[%clk 0:38:13]}  Ra7 {[%clk 0:32:38]}
22. Re1 {[%clk 0:36:26]}  Re7 {[%clk 0:28:39]} 23. Nd6 {[%clk 0:24:27]}  Rd8 {[%clk 0:24:11]} 24. Nxc8 {[%clk 0:24:06]}  Rxc8 {[%clk 0:24:35]}
25. Bxd5 {[%clk 0:24:31]}  cxd5 {[%clk 0:24:58]} 26. Rxd5 {[%clk 0:23:36]}  Rxc2+ {[%clk 0:24:46]} 27. Kxc2 {[%clk 0:23:27]}  Rc7+ {[%clk 0:25:08]}
28. Kd3 {[%clk 0:22:57]}  exd5 {[%clk 0:25:33]} 29. Re5 {[%clk 0:16:46]}  Rb7 {[%clk 0:25:18]} 30. b3 {[%clk 0:13:17]}  a4 {[%clk 0:24:07]}
31. Kc3 {[%clk 0:12:43]}  axb3 {[%clk 0:24:29]} 32. axb3 {[%clk 0:13:11]}  Rd7 {[%clk 0:19:37]} 33. b4 {[%clk 0:12:42]}  Rc7+ {[%clk 0:18:36]}
34. Kb3 {[%clk 0:10:40]}  Rd7 {[%clk 0:17:59]} 35. Rf5 {[%clk 0:07:05]}  d4 {[%clk 0:16:12]} 36. Rf2 {[%clk 0:07:13]}  d3 {[%clk 0:10:25]}
37. Kc3 {[%clk 0:07:37]}  h5 {[%clk 0:10:38]} 38. Rd2 {[%clk 0:07:27]}  Rc7+ {[%clk 0:10:58]} 39. Kb3 {[%clk 0:07:36]}  Rd7 {[%clk 0:10:52]}
40. Kc4 {[%clk 0:07:51]}  Rc7+ {[%clk 0:10:43]} 41. Kxd3 {[%clk 0:07:03]}  Kf7 {[%clk 0:10:59]} 42. Re2 {[%clk 0:07:18]}  Kf6 {[%clk 0:10:52]}
43. Kd4 {[%clk 0:07:35]}  Rc1 {[%clk 0:07:47]} 44. b5 {[%clk 0:07:26]}  Rb1 {[%clk 0:07:54]} 45. Kc5 {[%clk 0:07:50]}  Kf5 {[%clk 0:08:01]}
46. b6 {[%clk 0:07:57]}  g5 {[%clk 0:07:58]} 47. Kc6 {[%clk 0:08:18]}  Kg4 {[%clk 0:07:47]} 48. Rc2 {[%clk 0:07:46]}  h4 {[%clk 0:06:47]}
49. gxh4 {[%clk 0:08:06]}  gxh4 {[%clk 0:06:08]} 50. b7 {[%clk 0:08:27]} 1-0

[Event "Irish Championship 2026"]
[Site "Talbot Hotel Stillorgan, Co.Dublin, IE"]
[Date "2026.08.01"]
[Round "1"]
[White "Mulukutla, Ayaansh"]
[Black "Bartczak, Korneliusz"]
[Result "1/2-1/2"]
[Board "82"]
[TimeControl "40/5400+30:1800+30"]
[WhiteFideId "33391998"]
[BlackFideId "2523558"]
[WhiteElo "1839"]
[BlackElo "2062"]
[WhiteClock "0:04:01"]
[BlackClock "0:01:09"]
[Variant "Standard"]
[EndDate "2026.08.01"]
[EndTime "18:55:07"]

1. d4 {[%clk 1:30:50]}  d5 {[%clk 1:29:14]} 2. c4 {[%clk 1:31:15]}  c6 {[%clk 1:29:29]} 3. Nc3 {[%clk 1:31:38]}  Nf6 {[%clk 1:29:55]}
4. Nf3 {[%clk 1:32:03]}  e6 {[%clk 1:29:30]} 5. Bg5 {[%clk 1:32:18]}  h6 {[%clk 1:26:37]} 6. Bh4 {[%clk 1:31:22]}  Bd6 {[%clk 1:18:47]}
7. e3 {[%clk 1:27:45]}  Nbd7 {[%clk 1:18:48]} 8. Be2 {[%clk 1:26:41]}  O-O {[%clk 1:14:27]} 9. O-O {[%clk 1:23:43]}  Re8 {[%clk 1:08:17]}
10. Rc1 {[%clk 1:21:50]}  Qe7 {[%clk 1:01:32]} 11. e4 {[%clk 1:06:59]}  dxe4 {[%clk 0:59:01]} 12. Nxe4 {[%clk 1:04:12]}  Bf4 {[%clk 0:57:31]}
13. Rc3 {[%clk 1:01:16]}  g5 {[%clk 0:49:24]} 14. Nxf6+ {[%clk 0:54:56]}  Qxf6 {[%clk 0:47:24]} 15. Bg3 {[%clk 0:55:01]}  c5 {[%clk 0:33:56]}
16. Re1 {[%clk 0:49:32]}  Bxg3 {[%clk 0:25:15]} 17. hxg3 {[%clk 0:46:32]}  b6 {[%clk 0:22:49]} 18. Bf1 {[%clk 0:38:47]}  cxd4 {[%clk 0:13:32]}
19. Nxd4 {[%clk 0:38:01]}  Bb7 {[%clk 0:10:45]} 20. Nb5 {[%clk 0:33:16]}  Nc5 {[%clk 0:08:35]} 21. Qc2 {[%clk 0:31:17]}  Qe7 {[%clk 0:06:21]}
22. b4 {[%clk 0:28:03]}  Na6 {[%clk 0:06:06]} 23. a3 {[%clk 0:28:12]}  Nc7 {[%clk 0:04:09]} 24. Nd4 {[%clk 0:26:24]}  Rad8 {[%clk 0:03:36]}
25. Nb3 {[%clk 0:25:59]}  e5 {[%clk 0:01:34]} 26. Rce3 {[%clk 0:24:14]}  f6 {[%clk 0:01:18]} 27. Bd3 {[%clk 0:18:30]}  Ne6 {[%clk 0:01:00]}
28. Qc3 {[%clk 0:16:32]}  Qd6 {[%clk 0:00:43]} 29. Bg6 {[%clk 0:14:11]}  Re7 {[%clk 0:00:50]} 30. Rd3 {[%clk 0:07:33]}  Qc7 {[%clk 0:01:19]}
31. Red1 {[%clk 0:04:01]}  Rc8 {[%clk 0:01:09]} 1/2-1/2

[Event "Irish Championship 2026"]
[Site "Talbot Hotel Stillorgan, Co.Dublin, IE"]
[Date "2026.08.01"]
[Round "1"]
[White "Hughes, Padraig"]
[Black "Biswal, Saiansh"]
[Result "1-0"]
[Board "83"]
[TimeControl "40/5400+30:1800+30"]
[WhiteFideId "2505690"]
[BlackFideId "2518155"]
[WhiteElo "2022"]
[BlackElo "1824"]
[WhiteClock "0:02:00"]
[BlackClock "0:02:41"]
[Variant "Standard"]
[EndDate "2026.08.01"]
[EndTime "19:19:21"]

1. e4 {[%clk 1:30:58]}  c6 {[%clk 1:30:56]} 2. d4 {[%clk 1:31:23]}  d5 {[%clk 1:31:20]} 3. Nc3 {[%clk 1:31:50]}  dxe4 {[%clk 1:31:42]}
4. Nge2 {[%clk 1:32:15]}  Nf6 {[%clk 1:31:22]} 5. Ng3 {[%clk 1:32:37]}  g6 {[%clk 1:31:22]} 6. Ncxe4 {[%clk 1:30:45]}  Bg7 {[%clk 1:28:11]}
7. Nxf6+ {[%clk 1:28:59]}  exf6 {[%clk 1:27:49]} 8. Bc4 {[%clk 1:23:42]}  O-O {[%clk 1:27:47]} 9. O-O {[%clk 1:22:49]}  Nd7 {[%clk 1:21:33]}
10. h4 {[%clk 1:17:05]}  Nb6 {[%clk 1:18:20]} 11. Bb3 {[%clk 1:16:52]}  f5 {[%clk 1:16:29]} 12. Bg5 {[%clk 1:11:24]}  Qxd4 {[%clk 1:15:00]}
13. Qxd4 {[%clk 1:01:11]}  Bxd4 {[%clk 1:15:23]} 14. c3 {[%clk 1:01:33]}  Bg7 {[%clk 1:11:34]} 15. Rfe1 {[%clk 1:01:15]}  Bd7 {[%clk 1:06:40]}
16. Rad1 {[%clk 0:54:18]}  Rfe8 {[%clk 1:04:14]} 17. Re7 {[%clk 0:44:43]}  Rxe7 {[%clk 1:03:34]} 18. Bxe7 {[%clk 0:45:11]}  Re8 {[%clk 0:47:28]}
19. Bc5 {[%clk 0:44:31]}  Bc8 {[%clk 0:43:23]} 20. a4 {[%clk 0:36:32]}  Bf8 {[%clk 0:35:31]} 21. Be3 {[%clk 0:35:51]}  c5 {[%clk 0:32:34]}
22. a5 {[%clk 0:34:02]}  Nd7 {[%clk 0:32:47]} 23. Ba4 {[%clk 0:32:27]}  Re7 {[%clk 0:25:11]} 24. Bg5 {[%clk 0:23:01]}  f6 {[%clk 0:23:52]}
25. Bf4 {[%clk 0:23:23]}  Ne5 {[%clk 0:21:49]} 26. Rd8 {[%clk 0:23:14]}  Be6 {[%clk 0:20:01]} 27. Bh6 {[%clk 0:21:06]}  Rf7 {[%clk 0:17:18]}
28. Rb8 {[%clk 0:14:15]}  Bd5 {[%clk 0:15:22]} 29. Rc8 {[%clk 0:12:16]}  b6 {[%clk 0:08:02]} 30. axb6 {[%clk 0:12:23]}  axb6 {[%clk 0:08:21]}
31. f3 {[%clk 0:12:25]}  Bc4 {[%clk 0:07:37]} 32. b4 {[%clk 0:05:34]}  b5 {[%clk 0:06:46]} 33. Bc2 {[%clk 0:02:38]}  Be6 {[%clk 0:07:04]}
34. Rxf8+ {[%clk 0:02:27]}  Rxf8 {[%clk 0:07:15]} 35. Bxf8 {[%clk 0:02:54]}  Kxf8 {[%clk 0:07:37]} 36. bxc5 {[%clk 0:03:20]}  Nd7 {[%clk 0:07:16]}
37. c6 {[%clk 0:03:24]}  Nb8 {[%clk 0:07:19]} 38. Bb3 {[%clk 0:01:10]}  Bc8 {[%clk 0:05:53]} 39. Bd5 {[%clk 0:01:33]}  Ke7 {[%clk 0:05:21]}
40. Kf2 {[%clk 0:00:56]}  Kd6 {[%clk 0:05:00]} 41. Bg8 {[%clk 0:00:54]}  h6 {[%clk 0:05:13]} 42. Bh7 {[%clk 0:27:37]}  Nxc6 {[%clk 0:29:57]}
43. Bxg6 {[%clk 0:26:44]}  Ne7 {[%clk 0:29:21]} 44. Be8 {[%clk 0:24:54]}  Bd7 {[%clk 0:29:34]} 45. Bxd7 {[%clk 0:25:18]}  Kxd7 {[%clk 0:29:56]}
46. Ke3 {[%clk 0:20:09]}  Ke6 {[%clk 0:14:47]} 47. Nh5 {[%clk 0:16:35]}  Ke5 {[%clk 0:08:29]} 48. f4+ {[%clk 0:16:21]}  Ke6 {[%clk 0:08:27]}
49. Kd4 {[%clk 0:16:18]}  Kf7 {[%clk 0:01:04]} 50. Ng3 {[%clk 0:11:22]}  Ng6 {[%clk 0:00:37]} 51. Nxf5 {[%clk 0:08:26]}  Nxf4 {[%clk 0:00:53]}
52. g3 {[%clk 0:06:35]}  Ne2+ {[%clk 0:00:49]} 53. Kd3 {[%clk 0:06:34]}  Nxc3 {[%clk 0:00:39]} 54. Kxc3 {[%clk 0:06:56]}  Kg6 {[%clk 0:01:06]}
55. Ne3 {[%clk 0:05:58]}  f5 {[%clk 0:01:04]} 56. Kd4 {[%clk 0:04:17]}  Kf6 {[%clk 0:01:00]} 57. Nd5+ {[%clk 0:02:58]}  Kg6 {[%clk 0:01:04]}
58. Ke5 {[%clk 0:03:15]}  b4 {[%clk 0:01:07]} 59. Nxb4 {[%clk 0:03:29]}  Kh5 {[%clk 0:01:31]} 60. Nd5 {[%clk 0:03:36]}  Kg4 {[%clk 0:01:54]}
61. Ne3+ {[%clk 0:01:07]}  Kxg3 {[%clk 0:02:07]} 62. Nxf5+ {[%clk 0:01:32]}  Kg4 {[%clk 0:02:12]} 63. Kf6 {[%clk 0:00:38]}  Kh5 {[%clk 0:02:25]}
64. Ke5 {[%clk 0:00:32]}  Kg4 {[%clk 0:02:49]} 65. Ke6 {[%clk 0:00:52]}  Kh5 {[%clk 0:02:19]} 66. Kf6 {[%clk 0:00:40]}  Kg4 {[%clk 0:02:36]}
67. Kg6 {[%clk 0:00:45]}  h5 {[%clk 0:02:53]} 68. Kf6 {[%clk 0:01:07]}  Kf4 {[%clk 0:02:29]} 69. Ke6 {[%clk 0:00:40]}  Kf3 {[%clk 0:02:19]}
70. Ke5 {[%clk 0:00:55]}  Kg4 {[%clk 0:02:27]} 71. Ke4 {[%clk 0:01:19]}  Kh3 {[%clk 0:02:18]} 72. Kf4 {[%clk 0:01:38]}  Kh2 {[%clk 0:02:41]}
73. Kg5 {[%clk 0:02:00]} 1-0